Cogmind - Beta 10.1 @@@ ROGUE MODE // 2020.10.25 @ 16:57:11 Player: debl Result: Destroyed by Y-45 Defender with Heavy Assault Rifle Performance ------------- Evolutions (1) 500 Regions Visited (2) 400 Robots Destroyed (5) 25 Value Destroyed (121) 121 Prototype IDs (0) 0 Alien Tech Used (0) 0 Bonus (0) 0 TOTAL SCORE: 1046 Bonus ------- None Cogmind --------- Core Integrity 0/400 Matter 273/300 Energy 100/100 System Corruption 0% Temperature Cool (9) Movement Core (300) Ox5 Location -9/Materials Parts ------- > --- POWER (2) -------- (None) > --- PROPULSION (3) --- (None) > --- UTILITY (2) ------ Large Storage Unit > --- WEAPON (2) ------- (None) > --- INVENTORY (10) --- Heat Sink Medium Storage Unit Large Storage Unit Large Storage Unit Peak State ------------ > --- POWER ------------ Light Ion Engine > --- PROPULSION ------- Wheel Wheel Improved Hover Unit > --- UTILITY ---------- Small Storage Unit Signal Interpreter > --- WEAPON ----------- EM Pulse Gun > --- INVENTORY -------- Heat Sink [Rating: 8] Favorites ----------- Power Light Ion Engine Engine Light Ion Engine Propulsion Wheel Treads Light Treads Wheel Wheel Hover Unit Improved Hover Unit Utility Small Storage Unit Storage Small Storage Unit Processor Signal Interpreter Protection Core Shielding Weapon EM Pulse Gun Energy Gun EM Pulse Gun Ballistic Gun Light Assault Rifle Impact Weapon Heavy Hammer Build | -11 -10 -9 ------- Run | Scr Mat Mat Slots Evolved 2 | . . 2 Power 1 | . . 1 Propulsion 1 | . . 1 Utility . | . . . Weapon . | . . . Parts Attached 18 | 6 6 6 Power 2 | 1 1 . Engine 2 | 1 1 . Core . | . . . Reactor . | . . . Propulsion 6 | 2 2 2 Treads 2 | 2 . . Leg . | . . . Wheel 2 | . 2 . Hover 2 | . . 2 Flight . | . . . Utility 4 | 1 . 3 Device . | . . . Storage 2 | 1 . 1 Processor 1 | . . 1 Hackware . | . . . Protection 1 | . . 1 Artifact . | . . . Weapon 6 | 2 3 1 Energy Gun 3 | 1 2 . Energy Cannon . | . . . Ballistic Gun 2 | 1 1 . Ballistic Cannon . | . . . Launcher . | . . . Special Weapon . | . . . Impact Weapon 1 | . . 1 Slashing Weapon . | . . . Piercing Weapon . | . . . Special Melee Weapon . | . . . Unidentified Prototypes . | . . . Parts Lost 11 | . 5 6 Power 2 | . 1 1 Propulsion 3 | . 1 2 Utility 1 | . . 1 Weapon 5 | . 3 2 Highest Loss Streak 4 | . 2 4 Average Slot Usage (%) 67 | . 75 63 Engine 9 | . 12 8 Treads 5 | . 15 . Wheel 13 | . 7 16 Storage 11 | . 14 10 Processor 1 | . . 2 Protection 5 | . . 8 Energy Gun 9 | . 10 8 Ballistic Gun 4 | . 14 . Impact Weapon 5 | . . 8 Naked Turns . | . . . Heaviest Build 25 | 10 11 25 Greatest Support 40 | 40 40 20 Greatest Overweight (x) 6 | . . 6 Average Overweight (x) . | . . 1 Largest Inventory Capacity 10 | 6 6 10 Average Capacity 7 | 5 6 9 Most Carried 6 | 4 6 5 Average Carried 3 | 3 3 3 Final Capacity 10 | 6 6 10 Final Carried 4 | 4 2 4 Class Distribution -------------------- 100% | Mutant Dominant Class ---------------- Mutant | -10/Materials Mutant | -9/Materials Resources | -11 -10 -9 ----------- Run | Scr Mat Mat Matter Collected 329 | 201 112 16 Remotely . | . . . Salvage Created 131 | . 94 37 Parts 7 | . 3 4 Haulers Intercepted . | . . . Recyclers Shooed . | . . . Parts Field Recycled . | . . . Retrieved Matter . | . . . Parts Self-Destructed . | . . . Prevented . | . . . Kills | -11 -10 -9 ------- Run | Scr Mat Mat Combat Hostiles Destroyed 5 | . 2 3 Melee 1 | . . 1 Guns 2 | . 2 . AOE 1 | . . 1 Classes Destroyed 2 | . 1 1 Swarmer 3 | . . 3 Grunt 2 | . 2 . Best Kill Streak 2 | . 2 2 Combat Bots Only 2 | . 2 2 Max Kills in Single Turn 1 | . 1 1 Gunslinging . | . . . Exploded 1 | . . 1 Melee 1 | . . 1 Uniques/NPCs Destroyed . | . . . Combat | -11 -10 -9 -------- Run | Scr Mat Mat Damage Taken 1492 | . 686 806 Core 573 | . 160 413 Absorbed by Shields . | . . . Core Remaining (%) 68 | 100 36 . Volleys Fired 28 | . 23 5 Largest 2 | . 2 1 Hottest 70 | . 70 40 Shots Fired 50 | . 45 5 Gun 50 | . 45 5 Cannon . | . . . Launcher . | . . . Special . | . . . Kinetic 33 | . 33 . Thermal 12 | . 12 . Explosive . | . . . Electromagnetic 5 | . . 5 Robot Hit Streak 16 | . 16 . Robot Miss Streak 5 | . 3 5 Penetration Max . | . . . Secondary Targets . | . . . Shots Hit Robots 34 | . 32 2 Core Hits 11 | . 9 2 Critical Hits 1 | . 1 . Critical Kills . | . . . Critical Parts Destroyed 1 | . 1 . Melee Attacks 6 | . . 6 Impact 6 | . . 6 Slashing . | . . . Piercing . | . . . Sneak Attacks . | . . . Combat Hostiles . | . . . Follow-up Attacks . | . . . Damage Inflicted 370 | . 273 97 Guns 285 | . 273 12 Cannons . | . . . Explosions 44 | . . 44 Melee 39 | . . 39 Ramming 2 | . . 2 Kinetic 211 | . 211 . Thermal 106 | . 62 44 Explosive . | . . . Electromagnetic 12 | . . 12 Impact 39 | . . 39 Slashing . | . . . Piercing . | . . . Highest Corruption . | . . . Average Corruption . | . . . Corruption Purged . | . . . Overload Shots . | . . . Overflow Damage 13 | . . 13 Projectiles . | . . . Explosions 12 | . . 12 Melee 1 | . . 1 Knockbacks . | . . . Impact . | . . . Kinetic . | . . . Secondary . | . . . Self-Inflicted Damage 35 | . . 35 Shots 1 | . . 1 Rammed 1 | . . 1 Targets Rammed 1 | . . 1 Kicked . | . . . Crushed . | . . . Highest Temperature 235 | . 235 9 Average Temperature 109 | . 113 6 Received Heat Transfer 555 | . 420 135 Siege Activations . | . . . Robots Corrupted . | . . . Combat Hostiles . | . . . Parts Fried 1 | . . 1 Impact Corruptions 1 | . . 1 Robots Melted . | . . . Combat Hostiles . | . . . Parts Melted . | . . . Heat Transferred 235 | . 185 50 Parts Sabotaged . | . . . Parts Stolen . | . . . Parts Stripped . | . . . Power Chain Reactions 1 | . . 1 Missiles Intercepted . | . . . Alert | -11 -10 -9 ------- Run | Scr Mat Mat Peak Influence 64 | . 45 64 Initial 14 | . . 14 Average 15 | . 14 21 Maximum Alert Level . | . . . Low Security (%) 100 | 100 100 100 Level 1 . | . . . Level 2 . | . . . Level 3 . | . . . Level 4 . | . . . Level 5 . | . . . High Security . | . . . Max Security . | . . . Squads Dispatched 2 | . 1 1 Investigation . | . . . Extermination . | . . . Reinforcement 2 | . 1 1 Assault . | . . . Garrison . | . . . Intercept . | . . . Construction Impeded . | . . . Haulers Reinforced . | . . . Stealth | -11 -10 -9 --------- Run | Scr Mat Mat Distress Signals 1 | . . 1 Communications Jammed . | . . . Distress Signals . | . . . Times Spotted 23 | . 11 12 Peak Tracking Total 7 | . 7 7 Tactical Retreats 3 | . 1 2 Traps | -11 -10 -9 ------- Run | Scr Mat Mat Traps Triggered . | . . . Indirectly . | . . . Trap Hack Attempts . | . . . Triggered . | . . . Disarmed . | . . . Reprogrammed . | . . . Reused . | . . . Traps Extracted . | . . . Installed . | . . . Triggered . | . . . Machines | -11 -10 -9 ---------- Run | Scr Mat Mat Machines Disabled 1 | . . 1 Max in Single Turn 1 | . . 1 Machines Sabotaged . | . . . Garrisons Compromised . | . . . Overloaded Fab Kills . | . . . Fab Network Shutdowns . | . . . Hacking | -11 -10 -9 --------- Run | Scr Mat Mat Machines Accessed 1 | . . 1 Terminals . | . . . Fabricators . | . . . Repair Stations . | . . . Recycling Units . | . . . Scanalyzers 1 | . . 1 Garrison Access . | . . . Total Hacks 6 | . . 6 Successful 6 | . . 6 Failed . | . . . Catastrophic . | . . . Database Lockouts . | . . . Manual . | . . . Terminals . | . . . Fabricators . | . . . Repair Stations . | . . . Recycling Units . | . . . Scanalyzers 6 | . . 6 Garrison Access . | . . . Terminal Hacks . | . . . Fabricator Hacks . | . . . Repair Station Hacks . | . . . Recycling Unit Hacks . | . . . Scanalyzer 6 | . . 6 Insert Component 3 | . . 3 Analyze 3 | . . 3 Garrison Access Hacks . | . . . Unauthorized Hacks . | . . . Terminals . | . . . Fabricators . | . . . Repair Stations . | . . . Recycling Units . | . . . Scanalyzers . | . . . Garrison Access . | . . . Data Cores Recovered . | . . . Used . | . . . Hacking Detections . | . . . Full Trace Events . | . . . Feedback Events . | . . . Feedback Blocked . | . . . Robot Schematics Acquired . | . . . Robots Built . | . . . Matter . | . . . Time . | . . . Total Robot Build Rating . | . . . Part Schematics Acquired 3 | . . 3 Parts Built . | . . . Matter . | . . . Time . | . . . Total Part Build Rating . | . . . Parts Repaired . | . . . Time . | . . . Parts Recycled . | . . . Recycled Matter . | . . . Retrieved Matter . | . . . Retrieved Components . | . . . Parts Scanalyzed 3 | . . 3 Part Schematics Acquired 3 | . . 3 Parts Damaged . | . . . Bothacking | -11 -10 -9 ------------ Run | Scr Mat Mat Used RIF Installer . | . . . Robots Hacked . | . . . Non-combat . | . . . Combat . | . . . Robot Hacks Applied . | . . . Relay Couplers Released . | . . . Robots Rewired . | . . . Allies Hacked . | . . . Hacks Repelled . | . . . Allies | -11 -10 -9 -------- Run | Scr Mat Mat Total Allies . | . . . Largest Group . | . . . Highest-Rated Group . | . . . Highest-Rated Ally . | . . . Total Orders . | . . . Ally Attacks . | . . . Total Damage . | . . . Kills . | . . . Allies Corrupted . | . . . Allies Melted . | . . . Intel | -11 -10 -9 ------- Run | Scr Mat Mat Robot Analysis Total . | . . . Derelict Logs Recovered . | . . . Drone Launches . | . . . Drone Recoveries . | . . . Exploration | -11 -10 -9 ------------- Run | Scr Mat Mat Turns Passed 682 | 154 165 363 Spaces Moved 455 | 88 80 287 Core 17 | 5 . 12 Treads 117 | 83 34 . Legs . | . . . Wheels 309 | . 46 263 Hover 12 | . . 12 Flight . | . . . Fastest Speed 50 | 50 80 80 Average Speed 114 | 153 114 102 Slowest Speed 350 | 160 160 350 Overloaded Moves . | . . . Propulsion Burnouts . | . . . Robots Hopped . | . . . Cave-ins Triggered . | . . . Exploration Rate (%) 20 | 7 31 23 Regions Visited 2 Branch Regions . Pre-discovered Areas . | . . . Known Exits Taken . | . . . Unknown Exits Taken 2 | 1 1 . Scrap Searched . | . . . Spaces Dug . | . . . Terrain Destroyed 4 | . . 4 Melee . | . . . Projectile . | . . . AOE 4 | . . 4 Terrain Rammed . | . . . Walls Destroyed . | . . . Machines Disabled . | . . . Actions | -11 -10 -9 --------- Run | Scr Mat Mat Total 563 | 107 117 339 Wait 27 | 4 . 23 Move 453 | 87 79 287 Hop . | . . . Pick Up 22 | 10 5 7 Fast Attach . | . . . Attach 18 | 6 6 6 Detach 2 | . 1 1 Swap . | . . . Drop 6 | . 3 3 Fire 28 | . 23 5 Melee 6 | . . 6 Ram 1 | . . 1 Kick . | . . . Crush . | . . . Escape Stasis . | . . . Rewire . | . . . Trap . | . . . Miscellaneous . | . . . Route ------- -11/Scrapyard -10/Materials (discovered 2 exits: *Mat x2) -9/Materials History --------- Turn | Location | Event 50 | -11/Scrapyard | Discovered new exit (range 15) 155 | -11/Scrapyard | Entered Materials 280 | -10/Materials | Core integrity fell below 50% 303 | -10/Materials | Discovered new exit (range 13) 308 | -10/Materials | Discovered new exit (range 16) 315 | -10/Materials | Build established: Mutant 320 | -10/Materials | Entered another Materials area 320 | -9/Materials | Evolved 2 slots: Power x1, Propulsion x1 650 | -9/Materials | Lost 4 parts (1p2n1w) 661 | -9/Materials | Core integrity fell below 50% 679 | -9/Materials | Core integrity fell below 20% 683 | -9/Materials | Destroyed by Y-45 Defender with Heavy Assault Rifle Last Messages --------------- U-05 Engineer builds a Wall. U-05 Engineer lays Concrete. Destroyed Flight Unit. S-10 Pest system corrupted by crushing effect. U-05 Engineer lays Concrete. S-10 Pest system terminally corrupted. Flight Unit fried. U-05 Engineer lays Concrete. Acquired 16 matter. K-01 Serf collects debris. O-16 Technician: "IFF HANDSHAKE FAILED. SECURING TERMINAL." Lgt. Ion Engine destroyed. Imp. Hover Unit destroyed. ALERT: Hostiles spotted, dispatching reinforcements to Terminal M002. S-10 Pest destroyed. K-01 Serf collects debris. Core Shielding destroyed. S-10 Pest destroyed. Hvy. Hammer destroyed. Slammed into Y-45 Defender. Map ----- +----------------------------------------------------+ | ????????????????????????????????????????????? | | ????????????????????????????????????????????? | | ????????????????????????????????????????????? | | ????????????????????????????????????????????? | | ????????????????????????????????????????????? | | ????????????????????????????????????????????? | | ???? ?????????????????????????????????????? | | ???+ ?????????????????????????????????????? | | ???# #????????????????????????????????????? | | ???# #????????????????????????????????????? | | ???# #????????????????????????????????????? | | ???# #????????????????????????????????????? | | ???# #????????????????????????????????????? | | ???# #?????????????????????????#??????????? | | ???# ###?????????????????????? #??????????? | | ???# ?????????????????????? #??????????? | | ???# ?????????????????????? ???????????? | | ???# ?????????????????????? ????????????? | | ???# #####?????????????????? ?????????????? | | #### ###################### ?????????????? | | # # % ## """ # ??????????????? | | " # / "= ## "R"=+???????????????? | | "" # # " !! ## " "Y#???????????????? | | "" / # """ ! ## [#???????????????? | | "" # # *## #???????????????? | | " # ############/## @ #???????????????? | | # #??????????# ####Y####???????????????? | | # #??????????# #??#Y#??????????????????? | | #### #??????????# #??# #??????????????????? | | #### #?????????##[#### ### #??????????? | | #?????????# % [ #??????????? | | #### #?????????+ + ????????? | | ???# #?????????# #??????????? | | #??# #?????????########+## #??????????? | | #??# #????????????????????## ###??????????? | | #??# #???????????????????????#????????????? | | #??# #????????????????????????????????????? | | ???# #????????????????????????????????????? | | ???# #????????????????????????????????????? | | #??# ###????????????????????????????????????? | | #??# #??????????????????????????????????????? | | #??# #??????????????????????????????????????? | | #??# #??????????????????????????????????????? | | #??# #??????????????????????????????????????? | | #### #??????????????????????????????????????? | | #??????????????????????????????????????? | | #??????????????????????????????????????? | | #??????????????????????????????????????? | | #??????????????????????????????????????? | | #??????????????????????????????????????? | +----------------------------------------------------+ Best States ------------- Heat Dissipation 28 Energy Generation 10 Energy Capacity 125 Matter Stores 290 Matter Capacity 300 Sight Range 16 Terrain Scan Density 10 Core Shielding 20 Evasion (%) 44 Recoil Reduction 2 Item Schematics ----------------- Heat Sink | -9/Materials | Scanalyzed Med. Storage Unit | -9/Materials | Scanalyzed Imp. Hover Unit | -9/Materials | Scanalyzed Robot Schematics ------------------ None Fabricated ------------ Nothing Alien Tech Used ----------------- None Achievements -------------- Storm Trooper Challenges ------------ None Game ------ Seed DerelictSniperMicrothruster Manual? 0 Play Time 00:18:46 Cumulative 6.1 hours Start 2020.10.25 @ 16:38:20 End 2020.10.25 @ 16:57:11 Sessions 1 Manual Loads 0 Difficulty Rogue Special Mode None Game No. 10 Rogue 10 Adventurer 0 Explorer 0 Win Type - Total 0 Types 0/0/0/0/0/0/0/0/0 Lore% 1 Gallery% 12 Achievement% 2 Wizard Run 0 Options --------- ASCII 0 Keyboard 0 Movement Mouse Keybinds 0 Fullscreen 2 Font 12/Smallcaps Map View 76x56 Tactical HUD 0 Map Filters NONE Filters NONE Steam 1 RUN: 15d4ce2f-0066-4fe6-bb6c-0331a46497b2